[Event "GER-ch Youth U10 2020"]
[Site "Willingen"]
[Date "2020.10.28"]
[Round "3.25"]
[White "Herrmann, Arthur"]
[Black "Bock, Leonas"]
[Result "1-0"]
[ECO "C41"]
[WhiteElo "1151"]
[BlackElo "1301"]
[Annotator "NA"]
[PlyCount "91"]
[EventDate "2020.10.27"]
[EventType "swiss"]
[EventRounds "7"]
[EventCountry "GER"]
[SourceTitle "playchess.com"]
[Source "ChessBase"]
[SourceQuality "1"]
[TimeControl "40/4500+30:900+30"]

1. e4 {[%emt 0:00:00]} d6 {[%emt 0:00:00]} 2. d4 {[%emt 0:00:00]} Nf6 {[%emt 0:00:00]} 3. Nc3 {[%emt 0:00:00]} e5 4. Nf3 {[%emt 0:01:02]} Nbd7 {[%emt 0:00:04]} 5. Bc4 {[%emt 0:00:23]} Be7 {[%emt 0:00:14]} 6. O-O {[%emt 0:00:28]} c6 {[%emt 0:00:23]} 7. Re1 {[%emt 0:01:03]} Qc7 {[%emt 0:00:35]} 8. Bg5 {[%emt 0:01:37]} h6 {[%emt 0:01:35]} 9. Bh4 {[%emt 0:00:57]} O-O {[%emt 0:01:23]} 10. Qd2 {[%emt 0:01:38]} Re8 {[%emt 0:02:56]} 11. a3 {[%emt 0:02:29]} b5 {[%emt 0:03:05]} 12. Ba2 {[%emt 0:01:20]} Bf8 {[%emt 0:04:02]} 13. Rad1 {[%emt 0:03:09]} Bb7 {[%emt 0:04:41]} 14. Bg3 {[%emt 0:02:50]} Rad8 {[%emt 0:01:07]} 15. Qc1 {[%emt 0:03:45]} Qb6 {[%emt 0:05:56]} 16. Kh1 {[%emt 0:09:13]} Kh8 {[%emt 0:02:21]} 17. Bxf7 {[%emt 0:01:20]} Re7 {[%emt 0:00:37]} 18. Ba2 {[%emt 0:00:55]} a5 {[%emt 0:06:31]} 19. b4 {[%emt 0:04:00]} a4 {[%emt 0:01:11]} 20. dxe5 {[%emt 0:04:32]} dxe5 {[%emt 0:00:47]} 21. Nh4 {[%emt 0:01:56]} Kh7 {[%emt 0:05:10]} 22. Nf5 {[%emt 0:00:38]} Ng4 {[%emt 0:06:10]} 23. Nxe7 {[%emt 0:02:02]} Bxe7 {[%emt 0:00:09]} 24. Re2 {[%emt 0:00:50]} Bg5 {[%emt 0:03:09]} 25. Qb2 {[%emt 0:01:39]} Bf4 {[%emt 0:01:21]} 26. Rf1 {[%emt 0:04:01]} Bxg3 {[%emt 0:01:48]} 27. hxg3 {[%emt 0:00:56]} Rf8 {[%emt 0:00:59]} 28. f3 {[%emt 0:01:51]} h5 {[%emt 0:03:37]} 29. Be6 {[%emt 0:05:55]} Bc8 {[%emt 0:02:31]} 30. Qc1 {[%emt 0:04:37]} Ngf6 {[%emt 0:04:23]} 31. Qe3 {[%emt 0:02:25]} Qd8 {[%emt 0:01:57]} 32. Rd1 {[%emt 0:01:29]} Qe8 {[%emt 0:00:17]} 33. Bf5+ {[%emt 0:03:08]} g6 {[%emt 0:00:23]} 34. Bh3 {[%emt 0:00:18]} Rg8 {[%emt 0:01:46]} 35. Rd6 {[%emt 0:03:30]} Bb7 {[%emt 0:03:03]} 36. Red2 {[%emt 0:00:45]} Rg7 {[%emt 0:00:07]} 37. R2d3 {[%emt 0:03:06]} g5 {[%emt 0:01:03]} 38. Bf5+ {[%emt 0:00:25]} Kh8 {[%emt 0:00:09]} 39. Qd2 {[%emt 0:00:41]} Bc8 {[%emt 0:00:55]} 40. Rxc6 {[%emt 0:00:56]} Kg8 {[%emt 0:01:33]} 41. Nxb5 {[%emt 0:15:35]} Bb7 {[%emt 0:15:43]} 42. Rcd6 {[%emt 0:00:49]} Bc8 {[%emt 0:00:09]} 43. Nc7 {[%emt 0:01:19]} Qe7 {[%emt 0:00:20]} 44. Nb5 {[%emt 0:01:52]} Qe8 {[%emt 0:00:19]} 45. Na7 {[%emt 0:00:34]} Bb7 {[%emt 0:03:31]} 46. Bxd7 {[%emt 0:00:25]} 1-0

[Event "GER-ch Youth U10 2020"]
[Site "Willingen"]
[Date "2020.10.28"]
[Round "3.26"]
[White "Theviot, Luca"]
[Black "Allen, Phillipp"]
[Result "1-0"]
[ECO "A30"]
[WhiteElo "1423"]
[BlackElo "1250"]
[Annotator "NA"]
[PlyCount "101"]
[EventDate "2020.10.27"]
[EventType "swiss"]
[EventRounds "7"]
[EventCountry "GER"]
[SourceTitle "playchess.com"]
[Source "ChessBase"]
[SourceQuality "1"]
[TimeControl "40/4500+30:900+30"]

1. c4 {[%emt 0:00:00]} c5 {[%emt 0:00:00]} 2. g3 {[%emt 0:00:00]} d6 {[%emt 0:00:00]} 3. Bg2 {[%emt 0:00:00]} Nf6 {[%emt 0:00:10]} 4. Nc3 {[%emt 0:00:16]} g6 {[%emt 0:00:46]} 5. e4 {[%emt 0:00:15]} Nc6 {[%emt 0:01:56]} 6. d3 {[%emt 0:00:52]} Bg7 {[%emt 0:01:51]} 7. Nge2 {[%emt 0:00:13]} e5 {[%emt 0:00:31]} 8. O-O {[%emt 0:00:08]} O-O {[%emt 0:00:11]} 9. f4 {[%emt 0:01:45]} Re8 {[%emt 0:01:42]} 10. f5 {[%emt 0:00:23]} Rf8 {[%emt 0:00:57]} 11. h3 {[%emt 0:00:18]} a6 {[%emt 0:00:25]} 12. g4 {[%emt 0:00:22]} Nd7 {[%emt 0:00:26]} 13. g5 {[%emt 0:01:54]} Nb6 {[%emt 0:01:52]} 14. f6 {[%emt 0:00:22]} Bh8 {[%emt 0:00:20]} 15. Ng3 {[%emt 0:01:02]} Bd7 {[%emt 0:01:31]} 16. h4 {[%emt 0:01:50]} Qc8 {[%emt 0:00:32]} 17. h5 {[%emt 0:08:23]} Bg4 {[%emt 0:00:23]} 18. Bf3 {[%emt 0:00:06]} Bxf3 {[%emt 0:02:35]} 19. Qxf3 {[%emt 0:00:26]} Nd4 {[%emt 0:01:27]} 20. Qf2 {[%emt 0:01:53]} Qh3 {[%emt 0:02:20]} 21. Qg2 {[%emt 0:03:23]} Qxg2+ {[%emt 0:01:13]} 22. Kxg2 {[%emt 0:00:10]} Rfc8 {[%emt 0:01:23]} 23. a4 {[%emt 0:01:25]} Nc2 {[%emt 0:01:31]} 24. Rb1 {[%emt 0:00:18]} a5 {[%emt 0:03:11]} 25. Rf2 {[%emt 0:02:01]} Nb4 {[%emt 0:01:33]} 26. Rf3 {[%emt 0:03:01]} Kf8 {[%emt 0:04:46]} 27. hxg6 {[%emt 0:01:34]} hxg6 {[%emt 0:01:59]} 28. Bd2 {[%emt 0:00:22]} Ke8 {[%emt 0:01:01]} 29. Rh1 {[%emt 0:01:07]} Kd7 {[%emt 0:00:17]} 30. b3 {[%emt 0:03:40]} Ke6 {[%emt 0:00:45]} 31. Nd5 {[%emt 0:01:55]} Nd7 {[%emt 0:02:19]} 32. Rxh8 {[%emt 0:01:36]} Nb6 {[%emt 0:05:04]} 33. Rxc8 {[%emt 0:02:29]} Nxc8 {[%emt 0:00:16]} 34. Nc7+ {[%emt 0:00:08]} Kd7 {[%emt 0:00:33]} 35. Nxa8 {[%emt 0:00:08]} Kc6 {[%emt 0:01:38]} 36. Bxb4 {[%emt 0:00:18]} cxb4 {[%emt 0:00:34]} 37. Rf1 {[%emt 0:00:14]} b6 {[%emt 0:00:39]} 38. Rh1 {[%emt 0:01:31]} Kb7 {[%emt 0:00:09]} 39. Nxb6 {[%emt 0:00:45]} Kxb6 {[%emt 0:00:18]} 40. Rh7 {[%emt 0:00:43]} d5 {[%emt 0:00:15]} 41. exd5 {[%emt 0:15:25]} Nd6 {[%emt 0:15:15]} 42. Ne4 {[%emt 0:00:19]} Kc7 {[%emt 0:00:32]} 43. Nxd6 {[%emt 0:00:10]} Kxd6 {[%emt 0:00:13]} 44. Rxf7 {[%emt 0:00:09]} e4 {[%emt 0:00:16]} 45. dxe4 {[%emt 0:00:09]} Ke5 {[%emt 0:00:19]} 46. Re7+ {[%emt 0:00:25]} Kd4 {[%emt 0:00:36]} 47. f7 {[%emt 0:00:15]} Kc3 {[%emt 0:00:12]} 48. f8=Q {[%emt 0:00:11]} Kxb3 {[%emt 0:00:03]} 49. Qf3+ {[%emt 0:01:21]} Kxa4 {[%emt 0:00:19]} 50. Rb7 {[%emt 0:01:03]} b3 {[%emt 0:00:21]} 51. Qxb3# 1-0

[Event "GER-ch Youth U10 2020"]
[Site "Willingen"]
[Date "2020.10.28"]
[Round "3.27"]
[White "Peters, Lasse"]
[Black "Conrad, Marius"]
[Result "0-1"]
[ECO "C44"]
[WhiteElo "1223"]
[BlackElo "1645"]
[Annotator "NA"]
[PlyCount "116"]
[EventDate "2020.10.27"]
[EventType "swiss"]
[EventRounds "7"]
[EventCountry "GER"]
[SourceTitle "playchess.com"]
[Source "ChessBase"]
[SourceQuality "1"]
[TimeControl "40/4500+30:900+30"]

1. e4 {[%emt 0:00:00]} e5 {[%emt 0:00:00]} 2. Nf3 {[%emt 0:00:00]} Nc6 {[%emt 0:00:00]} 3. d4 {[%emt 0:00:07]} exd4 {[%emt 0:00:00]} 4. Nxd4 {[%emt 0:00:03]} Bb4+ {[%emt 0:01:09]} 5. c3 {[%emt 0:00:15]} Bc5 {[%emt 0:00:13]} 6. Be3 {[%emt 0:00:13]} Bb6 {[%emt 0:00:18]} 7. Bb5 {[%emt 0:00:44]} Nge7 {[%emt 0:01:02]} 8. O-O {[%emt 0:00:34]} O-O {[%emt 0:00:08]} 9. Na3 {[%emt 0:00:25]} d5 {[%emt 0:01:42]} 10. Nxc6 {[%emt 0:01:10]} bxc6 {[%emt 0:00:28]} 11. Bd3 {[%emt 0:01:47]} Bxe3 {[%emt 0:02:44]} 12. fxe3 {[%emt 0:00:11]} Rb8 {[%emt 0:02:26]} 13. Qc2 {[%emt 0:00:19]} h6 {[%emt 0:03:36]} 14. Rf2 {[%emt 0:01:49]} Ng6 {[%emt 0:04:47]} 15. Raf1 {[%emt 0:00:19]} Ne5 {[%emt 0:00:49]} 16. Be2 {[%emt 0:01:27]} Qg5 {[%emt 0:04:07]} 17. c4 {[%emt 0:01:45]} dxe4 {[%emt 0:04:08]} 18. Qxe4 {[%emt 0:00:33]} Rxb2 {[%emt 0:00:23]} 19. h4 {[%emt 0:00:38]} Qe7 {[%emt 0:01:36]} 20. Bd3 {[%emt 0:01:14]} f5 {[%emt 0:06:34]} 21. Qd4 {[%emt 0:06:39]} Rxf2 {[%emt 0:00:42]} 22. Rxf2 {[%emt 0:00:03]} Qxa3 {[%emt 0:01:10]} 23. Qxe5 {[%emt 0:00:42]} Qxd3 {[%emt 0:00:27]} 24. Qxc7 {[%emt 0:05:51]} Qxe3 {[%emt 0:01:27]} 25. Qxc6 {[%emt 0:00:41]} Rd8 {[%emt 0:00:51]} 26. Qf3 {[%emt 0:04:32]} Qxf3 {[%emt 0:00:23]} 27. Rxf3 {[%emt 0:00:16]} Rd4 {[%emt 0:00:30]} 28. Re3 {[%emt 0:00:24]} Kh7 {[%emt 0:00:13]} 29. c5 {[%emt 0:00:53]} Rxh4 {[%emt 0:01:31]} 30. Re8 {[%emt 0:00:34]} Bd7 {[%emt 0:00:48]} 31. Re7 {[%emt 0:00:30]} Rd4 {[%emt 0:00:26]} 32. Kf2 {[%emt 0:00:27]} Kg8 {[%emt 0:00:36]} 33. Ke3 {[%emt 0:00:41]} Re4+ {[%emt 0:00:06]} 34. Rxe4 {[%emt 0:00:48]} fxe4 {[%emt 0:00:02]} 35. Kxe4 {[%emt 0:00:04]} Bc6+ {[%emt 0:00:13]} 36. Ke5 {[%emt 0:00:32]} Bxg2 {[%emt 0:00:08]} 37. Kd6 {[%emt 0:00:13]} Kf7 {[%emt 0:00:27]} 38. c6 {[%emt 0:00:21]} Bxc6 {[%emt 0:00:07]} 39. Kxc6 {[%emt 0:00:12]} h5 {[%emt 0:00:01]} 40. Kd5 {[%emt 0:00:39]} Kf6 {[%emt 0:00:12]} 41. Ke4 {[%emt 0:15:11]} g5 {[%emt 0:15:54]} 42. Kf3 {[%emt 0:00:12]} Kf5 {[%emt 0:00:10]} 43. a4 {[%emt 0:00:14]} a5 {[%emt 0:00:24]} 44. Kg3 {[%emt 0:00:20]} g4 {[%emt 0:00:25]} 45. Kh4 {[%emt 0:01:10]} Kf4 {[%emt 0:00:13]} 46. Kxh5 {[%emt 0:00:09]} g3 {[%emt 0:00:04]} 47. Kg6 {[%emt 0:00:28]} g2 {[%emt 0:00:07]} 48. Kf6 {[%emt 0:00:17]} g1=Q 49. Ke6 Qd4 {[%emt 0:01:11]} 50. Kf7 {[%emt 0:00:40]} Qxa4 {[%emt 0:00:07]} 51. Ke6 {[%emt 0:00:21]} Qc4+ {[%emt 0:00:06]} 52. Kd6 {[%emt 0:00:21]} a4 {[%emt 0:00:06]} 53. Ke7 {[%emt 0:00:17]} a3 {[%emt 0:00:04]} 54. Kd6 {[%emt 0:00:15]} a2 {[%emt 0:00:05]} 55. Ke7 {[%emt 0:00:31]} Qc6 {[%emt 0:00:13]} 56. Kf7 {[%emt 0:00:20]} a1=Q 57. Kg8 Qa7 {[%emt 0:01:17]} 58. Kf8 {[%emt 0:00:46]} Qc8# {[%emt 0:00:05]} 0-1

[Event "GER-ch Youth U10 2020"]
[Site "Willingen"]
[Date "2020.10.28"]
[Round "3.28"]
[White "Yin, Vito"]
[Black "Mündörfer, Sebastian"]
[Result "0-1"]
[ECO "B35"]
[WhiteElo "1320"]
[BlackElo "1175"]
[Annotator "NA"]
[PlyCount "90"]
[EventDate "2020.10.27"]
[EventType "swiss"]
[EventRounds "7"]
[EventCountry "GER"]
[SourceTitle "playchess.com"]
[Source "ChessBase"]
[SourceQuality "1"]
[TimeControl "40/4500+30:900+30"]

1. e4 {[%emt 0:00:00]} c5 {[%emt 0:00:00]} 2. Nf3 {[%emt 0:00:00]} g6 {[%emt 0:00:00]} 3. d4 {[%emt 0:00:00]} cxd4 {[%emt 0:00:00]} 4. Nxd4 {[%emt 0:00:00]} Nc6 {[%emt 0:00:07]} 5. Nc3 {[%emt 0:00:00]} Bg7 {[%emt 0:00:09]} 6. Be3 {[%emt 0:00:01]} Nf6 {[%emt 0:00:18]} 7. Bc4 {[%emt 0:00:09]} Qa5 {[%emt 0:00:49]} 8. O-O {[%emt 0:00:30]} O-O {[%emt 0:00:08]} 9. Bb3 {[%emt 0:00:46]} d6 {[%emt 0:01:13]} 10. f3 {[%emt 0:00:20]} Nxd4 {[%emt 0:01:05]} 11. Qxd4 {[%emt 0:01:22]} Ng4 {[%emt 0:02:51]} 12. Qd2 {[%emt 0:05:09]} Nxe3 {[%emt 0:00:19]} 13. Qxe3 Be6 14. Qd3 {[%emt 0:12:35]} Rac8 {[%emt 0:16:58]} 15. Nd1 {[%emt 0:09:13]} Bxb3 {[%emt 0:01:10]} 16. axb3 {[%emt 0:01:24]} Qc5+ {[%emt 0:03:21]} 17. Kh1 {[%emt 0:00:29]} Qxc2 {[%emt 0:00:11]} 18. Qxc2 {[%emt 0:00:02]} Rxc2 {[%emt 0:00:13]} 19. Rxa7 {[%emt 0:00:01]} Rb8 {[%emt 0:00:36]} 20. Ra2 {[%emt 0:00:31]} Rbc8 {[%emt 0:01:11]} 21. h3 {[%emt 0:02:08]} Re2 {[%emt 0:08:25]} 22. b4 {[%emt 0:03:28]} h5 {[%emt 0:02:45]} 23. Ra7 {[%emt 0:03:42]} Rcc2 {[%emt 0:01:00]} 24. Rxb7 {[%emt 0:04:00]} Bd4 {[%emt 0:02:31]} 25. Rg1 {[%emt 0:08:11]} Bxg1 {[%emt 0:00:12]} 26. Kxg1 {[%emt 0:00:12]} Re1+ {[%emt 0:00:18]} 27. Kh2 {[%emt 0:00:01]} Rxd1 {[%emt 0:00:09]} 28. Kg3 {[%emt 0:00:00]} Rdd2 {[%emt 0:00:15]} 29. Rxe7 {[%emt 0:03:02]} Rxb2 {[%emt 0:00:15]} 30. b5 {[%emt 0:02:30]} g5 {[%emt 0:00:31]} 31. f4 {[%emt 0:01:08]} Rxg2+ {[%emt 0:00:13]} 32. Kf3 {[%emt 0:00:09]} Rbf2+ {[%emt 0:00:14]} 33. Ke3 gxf4+ {[%emt 0:00:12]} 34. Kd4 {[%emt 0:00:23]} Rb2 {[%emt 0:00:08]} 35. Rb7 {[%emt 0:00:12]} f3 {[%emt 0:00:09]} 36. Kd5 {[%emt 0:00:51]} f2 {[%emt 0:00:15]} 37. Rb8+ {[%emt 0:00:20]} Kg7 {[%emt 0:01:08]} 38. b6 {[%emt 0:00:35]} f1=Q {[%emt 0:00:12]} 39. b7 {[%emt 0:00:07]} Rxb7 {[%emt 0:00:06]} 40. Rxb7 {[%emt 0:00:07]} Qd1+ {[%emt 0:00:18]} 41. Kc6 {[%emt 0:15:18]} Qa4+ {[%emt 0:15:27]} 42. Kc7 {[%emt 0:00:17]} Rc2+ {[%emt 0:00:09]} 43. Kd8 {[%emt 0:00:07]} Qc6 {[%emt 0:00:15]} 44. Rd7 {[%emt 0:00:31]} Qc8+ {[%emt 0:00:16]} 45. Ke7 {[%emt 0:00:09]} Qf8# {[%emt 0:00:20]} 0-1

[Event "GER-ch Youth U10 2020"]
[Site "Willingen"]
[Date "2020.10.28"]
[Round "3.29"]
[White "Gulamzada, Elmir"]
[Black "Kutz, Paul Matti"]
[Result "1-0"]
[ECO "C42"]
[WhiteElo "1397"]
[BlackElo "1242"]
[Annotator "NA"]
[PlyCount "133"]
[EventDate "2020.10.27"]
[EventType "swiss"]
[EventRounds "7"]
[EventCountry "GER"]
[SourceTitle "playchess.com"]
[Source "ChessBase"]
[SourceQuality "1"]
[TimeControl "40/4500+30:900+30"]

1. e4 {[%emt 0:00:00]} e5 {[%emt 0:00:00]} 2. Nf3 {[%emt 0:00:00]} Nf6 {[%emt 0:01:04]} 3. Nxe5 {[%emt 0:00:25]} d6 {[%emt 0:00:14]} 4. Nf3 {[%emt 0:00:05]} Nxe4 {[%emt 0:00:10]} 5. Nc3 {[%emt 0:00:17]} Bf5 {[%emt 0:02:14]} 6. Qe2 {[%emt 0:00:59]} Qe7 {[%emt 0:00:06]} 7. Nd5 {[%emt 0:01:14]} Nxd2 {[%emt 0:02:10]} 8. Nxe7 {[%emt 0:00:23]} Nxf3+ {[%emt 0:00:10]} 9. Qxf3 {[%emt 0:00:21]} Bxc2 {[%emt 0:00:19]} 10. Qxb7 {[%emt 0:00:19]} Bxe7 {[%emt 0:00:22]} 11. Qxa8 {[%emt 0:00:16]} O-O 12. Qf3 d5 {[%emt 0:01:30]} 13. b3 {[%emt 0:01:12]} Re8 {[%emt 0:00:05]} 14. Be2 {[%emt 0:00:05]} Bf6 {[%emt 0:00:26]} 15. Qxd5 Bc3+ {[%emt 0:01:05]} 16. Kf1 {[%emt 0:01:36]} Bxa1 {[%emt 0:01:01]} 17. Bc4 {[%emt 0:00:17]} Bg6 {[%emt 0:00:15]} 18. Qb5 {[%emt 0:00:42]} c6 {[%emt 0:00:15]} 19. Qb7 {[%emt 0:00:46]} Bc3 {[%emt 0:00:15]} 20. g3 {[%emt 0:00:31]} c5 {[%emt 0:00:54]} 21. h4 {[%emt 0:00:31]} Re1+ {[%emt 0:00:22]} 22. Kg2 {[%emt 0:00:13]} Be4+ {[%emt 0:00:08]} 23. Qxe4 {[%emt 0:01:48]} Rxe4 {[%emt 0:00:49]} 24. Rd1 {[%emt 0:01:04]} Rd4 {[%emt 0:00:11]} 25. Be2 {[%emt 0:02:49]} Nc6 {[%emt 0:00:20]} 26. Bf3 {[%emt 0:00:55]} Nb4 {[%emt 0:00:19]} 27. a3 {[%emt 0:01:36]} Nd3 {[%emt 0:00:31]} 28. Be3 {[%emt 0:01:44]} Ne1+ {[%emt 0:03:51]} 29. Kf1 {[%emt 0:04:07]} Nxf3 {[%emt 0:00:23]} 30. Bxd4 {[%emt 0:00:39]} cxd4 {[%emt 0:00:16]} 31. Ke2 {[%emt 0:01:38]} Ne5 {[%emt 0:00:50]} 32. f4 {[%emt 0:01:22]} Ng4 {[%emt 0:01:24]} 33. Kf3 {[%emt 0:05:31]} Ne3 {[%emt 0:00:34]} 34. Rd3 {[%emt 0:01:34]} Nf5 {[%emt 0:00:51]} 35. Ke4 {[%emt 0:02:21]} Nd6+ {[%emt 0:03:16]} 36. Ke5 {[%emt 0:03:02]} Nb5 {[%emt 0:00:39]} 37. a4 {[%emt 0:01:01]} f6+ {[%emt 0:00:50]} 38. Kd5 {[%emt 0:01:46]} Nc7+ {[%emt 0:00:27]} 39. Kc6 {[%emt 0:01:20]} Na6 {[%emt 0:00:40]} 40. Kb7 {[%emt 0:01:03]} Nb4 {[%emt 0:00:02]} 41. Rd1 {[%emt 0:15:52]} a5 {[%emt 0:19:41]} 42. Kb6 {[%emt 0:05:03]} d3 {[%emt 0:02:16]} 43. Kxa5 {[%emt 0:00:30]} d2 {[%emt 0:00:30]} 44. Kb5 {[%emt 0:05:26]} Nd5 {[%emt 0:01:37]} 45. Kc4 {[%emt 0:01:56]} Kf7 {[%emt 0:02:18]} 46. Kxd5 {[%emt 0:00:30]} Ke7 {[%emt 0:00:30]} 47. Kc4 {[%emt 0:00:03]} Ba5 {[%emt 0:00:07]} 48. b4 {[%emt 0:00:09]} Bc7 {[%emt 0:00:20]} 49. Rxd2 {[%emt 0:00:02]} Bd6 {[%emt 0:00:13]} 50. Rxd6 {[%emt 0:00:21]} Kxd6 {[%emt 0:00:10]} 51. Kb5 {[%emt 0:00:04]} Kc7 {[%emt 0:00:06]} 52. a5 {[%emt 0:00:05]} Kb7 {[%emt 0:00:14]} 53. a6+ {[%emt 0:00:15]} Ka7 {[%emt 0:00:31]} 54. Kc6 {[%emt 0:00:10]} Kxa6 {[%emt 0:00:22]} 55. b5+ {[%emt 0:00:06]} Ka7 {[%emt 0:00:23]} 56. b6+ {[%emt 0:00:17]} Kb8 {[%emt 0:00:04]} 57. b7 {[%emt 0:00:17]} g6 {[%emt 0:00:14]} 58. g4 {[%emt 0:00:35]} h5 {[%emt 0:00:15]} 59. gxh5 {[%emt 0:01:11]} gxh5 60. f5 {[%emt 0:00:23]} Ka7 {[%emt 0:00:22]} 61. Kc7 {[%emt 0:00:14]} Ka6 {[%emt 0:00:35]} 62. b8=Q {[%emt 0:00:39]} Ka5 {[%emt 0:00:08]} 63. Kc6 {[%emt 0:00:30]} Ka4 {[%emt 0:00:30]} 64. Kc5 {[%emt 0:00:11]} Ka3 {[%emt 0:00:06]} 65. Kc4 {[%emt 0:00:12]} Ka2 {[%emt 0:00:09]} 66. Kc3 {[%emt 0:00:09]} Ka1 {[%emt 0:00:07]} 67. Qb2# {[%emt 0:00:09]} 1-0

[Event "GER-ch Youth U10 2020"]
[Site "Willingen"]
[Date "2020.10.29"]
[Round "4.1"]
[White "Buchinger, Alexis"]
[Black "Herrmann, Jakob"]
[Result "1-0"]
[ECO "B13"]
[WhiteElo "1496"]
[BlackElo "1504"]
[Annotator "NA RC"]
[PlyCount "65"]
[EventDate "2020.10.27"]
[EventType "swiss"]
[EventRounds "7"]
[EventCountry "GER"]
[SourceTitle "playchess.com"]
[Source "ChessBase"]
[SourceQuality "1"]
[TimeControl "40/4500+30:900+30"]

1. e4 {[%emt 0:00:00]} c6 {[%emt 0:00:00]} 2. d4 {[%emt 0:00:10]} d5 {[%emt 0:00:00]} 3. exd5 {[%emt 0:00:11]} cxd5 {[%emt 0:00:12]} 4. Bd3 {[%emt 0:00:13]} Nc6 {[%emt 0:00:34]} 5. c3 {[%emt 0:00:16]} g6 {[%emt 0:00:25]} 6. Bf4 {[%emt 0:00:18]} Bg7 {[%emt 0:00:37]} 7. h3 {[%emt 0:00:48]} Nh6 {[%emt 0:01:23]} 8. Qd2 {[%emt 0:00:24]} Nf5 {[%emt 0:01:08]} 9. Nf3 {[%emt 0:00:34]} O-O {[%emt 0:00:49]} 10. O-O {[%emt 0:00:32]} f6 {[%emt 0:03:14]} 11. Re1 {[%emt 0:10:51]} Re8 {[%emt 0:08:45]} 12. Bb5 {[%emt 0:05:13]} Nd6 {[%emt 0:05:00]} 13. Bxc6 {[%emt 0:02:28]} bxc6 {[%emt 0:00:31]} 14. Qe2 {[%emt 0:03:02]} Nf7 {[%emt 0:04:27]} 15. Bg3 {[%emt 0:03:13]} e5 {[%emt 0:02:28]} 16. Nbd2 {[%emt 0:02:35]} Qb6 {[%emt 0:03:40]} 17. Nb3 {[%emt 0:01:27]} Ba6 {[%emt 0:00:27]} 18. Qc2 {[%emt 0:01:11]} exd4 {[%emt 0:15:46]} 19. cxd4 {[%emt 0:01:36]} Bf8 {[%emt 0:01:04]} 20. Rac1 {[%emt 0:01:41]} Bb5 {[%emt 0:01:22]} 21. Qc3 {[%emt 0:08:58]} a5 {[%emt 0:03:21]} 22. Nc5 {[%emt 0:01:09]} Rxe1+ {[%emt 0:00:42]} 23. Qxe1 {[%emt 0:04:02]} Bxc5 {[%emt 0:01:41]} 24. Rxc5 {[%emt 0:00:26]} a4 {[%emt 0:00:46]} 25. Qe6 {[%emt 0:10:26]} Qd8 {[%emt 0:01:43]} 26. Bh4 {[%emt 0:03:19]} Kg7 {[%emt 0:00:55]} 27. Ne5 {[%emt 0:02:08]} Nxe5 {[%emt 0:04:21]} 28. dxe5 {[%emt 0:00:10]} g5 {[%emt 0:00:31]} 29. Bg3 {[%emt 0:04:13]} Kg6 {[%emt 0:04:09]} 30. h4 {[%emt 0:01:16]} h6 {[%emt 0:01:40]} 31. exf6 {[%emt 0:01:30]} Qxf6 {[%emt 0:00:20]} 32. h5+ {[%emt 0:00:06]} Kg7 {[%emt 0:01:17]} 33. Be5 {[%emt 0:00:04]} 1-0

[Event "GER-ch Youth U10 2020"]
[Site "Willingen"]
[Date "2020.10.29"]
[Round "4.2"]
[White "Besou, Hussain"]
[Black "Burkart, Lloyd Shang"]
[Result "1-0"]
[ECO "E15"]
[WhiteElo "1825"]
[BlackElo "1508"]
[Annotator "NA RC"]
[PlyCount "75"]
[EventDate "2020.10.27"]
[EventType "swiss"]
[EventRounds "7"]
[EventCountry "GER"]
[SourceTitle "playchess.com"]
[Source "ChessBase"]
[SourceQuality "1"]
[TimeControl "40/4500+30:900+30"]

1. d4 {[%emt 0:00:00]} Nf6 {[%emt 0:00:00]} 2. c4 {[%emt 0:00:00]} e6 {[%emt 0:00:23]} 3. Nf3 {[%emt 0:00:00]} b6 {[%emt 0:00:56]} 4. g3 {[%emt 0:00:00]} d5 {[%emt 0:07:33]} 5. Bg2 {[%emt 0:00:16]} Be7 {[%emt 0:00:51]} 6. O-O {[%emt 0:00:09]} O-O {[%emt 0:00:47]} 7. Nc3 {[%emt 0:01:51]} Bb7 {[%emt 0:03:58]} 8. Bf4 {[%emt 0:03:22]} c6 {[%emt 0:02:11]} 9. Qc2 {[%emt 0:09:34]} Na6 {[%emt 0:01:24]} 10. Rac1 {[%emt 0:02:02]} Rc8 {[%emt 0:01:14]} 11. Rfd1 {[%emt 0:00:48]} Nh5 {[%emt 0:06:09]} 12. Be3 {[%emt 0:00:40]} Qc7 {[%emt 0:02:07]} (12... dxc4 $11 13. a3 b5) 13. Ne5 {[%emt 0:10:12]} Bd6 {[%emt 0:04:00]} 14. f4 {[%emt 0:01:52]} Rfd8 {[%emt 0:03:55]} 15. Bf2 {[%emt 0:01:37]} Nf6 {[%emt 0:15:04]} 16. e4 {[%emt 0:01:27]} Qe7 {[%emt 0:06:26]} 17. Qe2 {[%emt 0:01:17]} Nc7 {[%emt 0:02:33]} 18. g4 {[%emt 0:03:19]} Nd7 {[%emt 0:02:31]} 19. Bg3 {[%emt 0:01:08]} f6 {[%emt 0:01:09]} 20. Nxd7 {[%emt 0:00:23]} Qxd7 {[%emt 0:00:15]} 21. e5 {[%emt 0:01:08]} fxe5 {[%emt 0:00:19]} 22. fxe5 {[%emt 0:00:08]} Be7 {[%emt 0:00:23]} 23. cxd5 {[%emt 0:02:13]} cxd5 {[%emt 0:00:57]} (23... exd5 $17 24. h3 Bg5) 24. Qe3 {[%emt 0:01:31]} g5 $14 {[%emt 0:02:53]} 25. Bf1 {[%emt 0:00:55]} Ba6 {[%emt 0:00:18]} 26. Bxa6 {[%emt 0:00:10]} Nxa6 27. a3 {[%emt 0:00:09]} Rf8 {[%emt 0:00:53]} 28. Rf1 {[%emt 0:00:17]} h6 {[%emt 0:00:48]} 29. Qd3 {[%emt 0:00:08]} Nb8 {[%emt 0:03:54]} 30. Qg6+ {[%emt 0:00:15]} Kh8 31. Qxh6+ Kg8 {[%emt 0:00:22]} 32. Qg6+ {[%emt 0:00:09]} Kh8 33. Kg2 {[%emt 0:00:42]} Nc6 {[%emt 0:13:10]} 34. Rh1 {[%emt 0:00:30]} Qd8 {[%emt 0:00:26]} 35. Qh6+ {[%emt 0:00:19]} Kg8 {[%emt 0:00:07]} 36. Qxe6+ {[%emt 0:00:03]} Kg7 {[%emt 0:00:17]} 37. Nxd5 {[%emt 0:00:22]} Rf7 {[%emt 0:01:07]} 38. Rxc6 {[%emt 0:00:08]} 1-0